bitfinex/quotes_ETHUSD_20240927
["timestamp","ask_amount","ask_price","bid_price","bid_amount"]
[1727478098520,305.43932191,2711.9,2711.8,12.13944965]
[1727478098824,305.43932191,2711.9,2711.8,14.44354783]
[1727478099389,313.20932191,2711.9,2711.8,14.44354783]
[1727478101026,313.20932191,2711.9,2711.8,10.44354783]
[1727478101521,320.97932191,2711.9,2711.8,10.44354814]
[1727478102838,320.97932191,2711.9,2711.8,10.4436997]
[1727478103124,320.97932191,2711.9,2711.8,10.44370819]
[1727478103726,328.74932191,2711.9,2711.8,10.44392525]
[1727478104323,328.74932191,2711.9,2711.8,9.63862525]
[1727478105286,328.74932191,2711.9,2711.8,8.43119515]
[1727478105722,336.51932191,2711.9,2711.8,8.43119515]
[1727478106688,336.51932191,2711.9,2711.8,8.98119515]
[1727478107818,344.28932191,2711.9,2711.8,8.98119515]
[1727478108230,344.28932191,2711.9,2711.8,10.90194743]
[1727478109887,352.05932191,2711.9,2711.8,10.90194743]
[1727478111238,352.05932191,2711.9,2711.8,8.98119515]
[1727478111411,352.05932191,2711.9,2711.8,10.90147722]
[1727478112118,359.82932191,2711.9,2711.8,10.90147722]
[1727478113798,359.82932191,2711.9,2711.8,11.50186632]
[1727478114195,367.59932191,2711.9,2711.8,11.50186632]
[1727478115729,367.59932191,2711.9,2711.8,9.58158425]
[1727478116294,375.36932191,2711.9,2711.8,9.58158425]
[1727478116833,375.36932191,2711.9,2711.8,8.98119515]
[1727478117397,375.36932191,2711.9,2711.8,9.58142161]
[1727478117628,375.36932191,2711.9,2711.8,10.15268442]
[1727478118402,383.13932191,2711.9,2711.8,10.15268442]
[1727478119019,383.13932191,2711.9,2711.8,10.52781669]
[1727478119734,383.13932191,2711.9,2711.8,12.83137484]
[1727478120099,383.13932191,2711.9,2711.8,16.83137484]
[1727478120312,383.13932191,2711.9,2711.8,15.85601611]
[1727478120630,390.90932191,2711.9,2711.8,16.83127856]
[1727478121657,390.90932191,2711.9,2711.8,16.26005633]
[1727478122251,390.90932191,2711.9,2711.8,17.05245633]
[1727478122553,389.70596177,2711.9,2711.8,17.05245633]
[1727478122715,397.47596177,2711.9,2711.8,17.05245633]
[1727478123050,388.28214803,2711.9,2711.8,14.3681601]
[1727478123257,388.28214803,2711.9,2711.8,15.57823378]
[1727478123424,388.28214803,2711.9,2711.8,14.74874994]
[1727478123755,387.86404803,2711.9,2711.8,14.74874994]
[1727478124917,395.63404803,2711.9,2711.8,14.74874994]
[1727478125646,395.52374803,2711.9,2711.8,18.63874994]
[1727478125952,395.52374803,2711.9,2711.8,14.74874994]
[1727478126655,395.52374803,2711.9,2711.8,15.11814994]
[1727478127056,403.29374803,2711.9,2711.8,15.11814994]
[1727478127432,402.92374803,2711.9,2711.8,15.11814994]
[1727478128656,402.92374803,2711.9,2711.8,11.11814994]
[1727478129236,410.69374803,2711.9,2711.8,11.11814994]
[1727478130332,410.69374803,2711.9,2711.8,10.14299515]
[1727478130550,410.69374803,2711.9,2711.8,10.51808532]
[1727478130871,410.69374803,2711.9,2711.8,11.1182296]
[1727478131334,418.46374803,2711.9,2711.8,11.1182296]
[1727478131531,418.46374803,2711.9,2711.8,15.1182296]
[1727478133537,426.23374803,2711.9,2711.8,15.1182296]
[1727478133934,426.23374803,2711.9,2711.8,15.11821735]
[1727478134132,424.61282238,2711.9,2711.8,15.11821735]
[1727478135157,418.08156333,2711.9,2711.8,15.11821735]
[1727478135625,425.85156333,2711.9,2711.8,15.11821735]
[1727478136228,425.85156333,2711.9,2711.8,14.14299515]
[1727478136441,425.85156333,2711.9,2711.8,15.11813464]
[1727478136977,425.42636333,2711.9,2711.8,15.11813464]
[1727478137560,425.42636333,2711.9,2711.8,14.7430592]
[1727478137782,425.42636333,2711.9,2711.8,15.11809923]
[1727478137949,425.42636333,2711.9,2711.8,14.14299515]
[1727478138261,425.42636333,2711.9,2711.8,15.11804411]
[1727478138468,433.19636333,2711.9,2711.8,15.11804411]
[1727478140380,440.86566333,2711.9,2711.8,15.11804411]
[1727478141380,439.94226333,2711.9,2711.8,15.11804411]
[1727478142370,447.71226333,2711.9,2711.8,15.11804411]
[1727478143238,446.61272406,2711.9,2711.8,15.11804411]
[1727478144592,454.38272406,2711.9,2711.8,15.11804411]
[1727478144946,454.38272406,2711.9,2711.8,15.11773668]
[1727478146768,462.15272406,2711.9,2711.8,15.11773668]
[1727478148350,462.15272406,2711.9,2711.8,15.117695]
[1727478148558,462.15272406,2711.9,2711.8,11.117695]
[1727478148849,462.15272406,2711.9,2711.8,10.74281188]
[1727478149085,469.92272406,2711.9,2711.8,11.11769733]
[1727478150154,469.92272406,2711.9,2711.8,11.11771573]
[1727478150555,469.92272406,2711.9,2711.8,13.41952066]
[1727478150783,469.92272406,2711.9,2711.8,11.11771573]
[1727478150969,469.92272406,2711.9,2711.8,13.41956227]
[1727478151175,477.69272406,2711.9,2711.8,13.41956227]
[1727478151652,477.69272406,2711.9,2711.8,17.41956227]
[1727478152052,477.55372406,2711.9,2711.8,14.14299515]
[1727478152282,477.55372406,2711.9,2711.8,15.11776644]
[1727478153392,485.32372406,2711.9,2711.8,15.11776644]
[1727478154291,484.71427877,2711.9,2711.8,15.11776644]
[1727478155476,492.48427877,2711.9,2711.8,14.14299515]
[1727478155800,492.48427877,2711.9,2711.8,19.00490287]
[1727478155973,492.48427877,2711.9,2711.8,15.11790287]
[1727478157099,491.54317877,2711.9,2711.8,15.11790287]
[1727478157559,499.31317877,2711.9,2711.8,15.11790287]
[1727478158998,499.31317877,2711.9,2711.8,16.82881306]
[1727478159171,499.31317877,2711.9,2711.8,17.42890239]
[1727478159366,499.31317877,2711.9,2711.8,18.02987177]
[1727478159578,499.31317877,2711.9,2711.8,20.0228446]
[1727478159893,497.65813972,2711.9,2711.8,17.8048446]
[1727478160067,497.65813972,2711.9,2711.8,17.80463701]
[1727478160270,497.65813972,2711.9,2711.8,15.11815678]
[1727478160271,493.22705418,2711.9,2711.8,15.11815678]
[1727478160491,493.22705418,2711.9,2711.8,14.74875678]
[1727478161461,493.22705418,2711.9,2711.8,10.74875678]
[1727478161885,500.99705418,2711.9,2711.8,10.74875678]
[1727478163927,508.25475418,2711.9,2711.8,10.74875678]
[1727478164432,508.25475418,2711.9,2711.8,14.74875678]
[1727478165929,509.72515623,2711.9,2711.8,14.74875678]
[1727478166088,509.20515623,2711.9,2711.8,14.74875678]
[1727478166289,509.20515623,2711.9,2711.8,17.43640125]
[1727478167222,509.04105623,2711.9,2711.8,17.43640125]
[1727478167390,509.04105623,2711.9,2711.8,14.74875678]
[1727478167790,509.04105623,2711.9,2711.8,17.43671978]
[1727478168286,516.81105623,2711.9,2711.8,17.43671978]
[1727478168488,514.85075623,2711.9,2711.8,14.74875678]
[1727478169527,514.85075623,2711.9,2711.8,13.77359515]
[1727478169685,514.85075623,2711.9,2711.8,14.74930069]
[1727478169890,514.85075623,2711.9,2711.8,15.49983256]
[1727478170967,514.85075623,2711.9,2711.8,18.18790329]
[1727478171133,522.62075623,2711.9,2711.8,15.49983256]
[1727478171517,522.62075623,2711.9,2711.8,18.18790504]
[1727478173166,522.62075623,2711.9,2711.8,18.1878066]
[1727478173458,530.39075623,2711.9,2711.8,18.1878066]
[1727478173918,530.39075623,2711.9,2711.8,15.49973412]
[1727478175530,538.16075623,2711.9,2711.8,18.18814856]
[1727478176680,538.16075623,2711.9,2711.8,18.18846052]
[1727478177259,538.16075623,2711.9,2711.8,17.39606052]
[1727478177753,545.93075623,2711.9,2711.8,17.39606052]
[1727478178350,545.93075623,2711.9,2711.8,14.70764608]
[1727478179782,553.70075623,2711.9,2711.8,14.70764608]
[1727478179987,553.70075623,2711.9,2711.8,12.98119515]
[1727478180489,553.70075623,2711.9,2711.8,14.70774544]
[1727478180680,553.70075623,2711.9,2711.8,17.39638134]
[1727478182091,553.08036436,2711.9,2711.8,17.39638134]
[1727478182254,560.85036436,2711.9,2711.8,14.70774544]
[1727478184453,568.62036436,2711.9,2711.8,14.70774544]
[1727478184889,568.62036436,2711.9,2711.8,10.70774544]
[1727478185790,568.62036436,2711.9,2711.8,13.39639519]
[1727478186092,564.89826436,2711.9,2711.8,13.39639519]
[1727478186383,564.89826436,2711.9,2711.8,10.70774544]
[1727478186587,572.66826436,2711.9,2711.8,10.70774544]
[1727478187399,550.46777132,2711.9,2711.8,31.62755365]
[1727478187568,547.33831658,2711.9,2711.8,29.57012013]
[1727478187889,546.42255123,2711.9,2711.8,31.92489181]
[1727478188087,545.68270123,2711.9,2711.8,31.31491339]
[1727478188295,541.25151752,2711.9,2711.8,35.12130787]
[1727478188490,541.25151752,2711.9,2711.8,31.31491339]
[1727478188653,544.59033381,2711.9,2711.8,31.31491339]
[1727478188853,540.1591501,2711.9,2711.8,35.12161505]
[1727478189211,540.0091501,2711.9,2711.8,28.5138291]
[1727478189409,535.60270336,2711.9,2711.8,28.5138291]
[1727478189586,531.17151965,2711.9,2711.8,28.5138291]
[1727478189792,531.17151965,2711.9,2711.8,26.78727881]
[1727478190117,530.67151965,2711.9,2711.8,27.98196401]
[1727478190312,520.62687689,2711.9,2711.8,20.45108915]
[1727478190475,516.1958568,2711.9,2711.8,22.17524479]
[1727478190677,519.53483671,2711.9,2711.8,22.17524479]
[1727478190977,519.29483671,2711.9,2711.8,22.17524479]
[1727478191177,514.31731662,2711.9,2711.8,22.17524479]
[1727478191516,509.88629653,2711.9,2711.8,22.17524479]
[1727478192018,505.00527644,2711.9,2711.8,22.17524479]
[1727478192176,500.57425635,2711.9,2711.8,22.17524479]
[1727478192488,496.14323626,2711.9,2711.8,25.98194645]
[1727478192815,499.48221617,2711.9,2711.8,22.17524479]
[1727478193111,495.05119608,2711.9,2711.8,22.17524479]
[1727478193317,495.05119608,2711.9,2711.8,20.45108915]
[1727478193504,490.62017599,2711.9,2711.8,21.05027484]
[1727478193676,486.1891559,2711.9,2711.8,22.173748]
[1727478194100,481.75813581,2711.9,2711.8,22.173748]
[1727478194318,477.32711572,2711.9,2711.8,22.173748]
[1727478194489,472.89609563,2711.9,2711.8,22.173748]
[1727478194685,472.89609563,2711.9,2711.8,18.153654]
[1727478194911,476.23507554,2711.9,2711.8,25.93478]
[1727478195113,471.80405545,2711.9,2711.8,25.93478]
[1727478196982,479.57405545,2711.9,2711.8,25.93478]
[1727478197523,479.57405545,2711.9,2711.8,25.33559431]
[1727478198021,474.57865545,2711.9,2711.8,24.21212115]
[1727478198326,474.57865545,2711.9,2711.8,31.64515146]
[1727478198847,474.57865545,2711.9,2711.8,33.3674135]
[1727478198985,482.34865545,2711.9,2711.8,33.3674135]
[1727478199185,482.10725807,2711.9,2711.8,30.09394983]
[1727478199627,482.10725807,2711.9,2711.8,25.45936583]
[1727478199829,482.10725807,2711.9,2711.8,24.33615146]
[1727478200033,481.25505807,2711.9,2711.8,24.33615146]
[1727478200319,481.25505807,2711.9,2711.8,26.05840242]
[1727478201723,489.02505807,2711.9,2711.8,26.05840242]
[1727478202584,488.27725807,2711.9,2711.8,26.05780024]
[1727478202782,487.52945807,2711.9,2711.8,26.05780024]
[1727478203222,486.78165807,2711.9,2711.8,26.05780024]
[1727478203546,486.78165807,2711.9,2711.8,24.33554928]
[1727478203690,486.78165807,2711.9,2711.8,26.05763886]
[1727478204028,494.55165807,2711.9,2711.8,26.05763886]
[1727478204228,494.55165807,2711.9,2711.8,22.05763886]
[1727478204926,494.21555807,2711.9,2711.8,22.05763886]
[1727478206129,501.98555807,2711.9,2711.8,22.05763886]
[1727478207096,501.98555807,2711.9,2711.8,26.05763886]
[1727478207500,501.98555807,2711.9,2711.8,26.05739892]
[1727478208094,509.23715807,2711.9,2711.8,26.05739892]
[1727478209935,509.23715807,2711.9,2711.8,14.57268473]
[1727478210232,517.00715807,2711.9,2711.8,13.82395013]
[1727478210392,517.00715807,2711.9,2711.8,16.50575386]
[1727478210891,517.00715807,2711.9,2711.8,8.75750463]
[1727478211096,517.78745807,2711.9,2711.8,12.10468492]
[1727478211327,517.78745807,2711.9,2711.8,6.40455013]
[1727478211491,517.78745807,2711.9,2711.8,9.80556245]
[1727478211695,517.78745807,2711.9,2711.8,10.40455013]
[1727478211906,517.78745807,2711.9,2711.8,10.1487012]
[1727478212102,517.78745807,2711.9,2711.8,11.46633137]
[1727478212414,525.55745807,2711.9,2711.8,10.1487012]
[1727478213140,525.55745807,2711.9,2711.8,15.23201935]
[1727478213810,525.55745807,2711.9,2711.8,11.23201935]
[1727478214142,525.55745807,2711.9,2711.8,11.23237575]
[1727478214555,533.32745807,2711.9,2711.8,9.58533025]
[1727478215041,533.32745807,2711.9,2711.8,8.98612325]
[1727478215238,533.32745807,2711.9,2711.8,7.4528051]
[1727478215602,533.32745807,2711.9,2711.8,10.63316875]
[1727478215803,533.32745807,2711.9,2711.8,11.23237575]
[1727478216133,533.32745807,2711.9,2711.8,9.6990576]
[1727478216352,533.32745807,2711.9,2711.8,9.0998506]
[1727478216522,541.09745807,2711.9,2711.8,9.0998506]
[1727478218653,548.86745807,2711.9,2711.8,9.0998506]
[1727478220737,556.63745807,2711.9,2711.8,9.0998506]
[1727478221249,556.63745807,2711.9,2711.8,8.72534622]
[1727478221455,556.63745807,2711.9,2711.8,9.09952992]
[1727478222807,564.40745807,2711.9,2711.8,7.45248442]
[1727478223950,564.40745807,2711.9,2711.8,7.07830072]
[1727478225135,572.17745807,2711.9,2711.8,7.07830072]
[1727478227327,579.94745807,2711.9,2711.8,7.07830072]
[1727478229342,587.71745807,2711.9,2711.8,7.07830072]
[1727478231676,595.48745807,2711.9,2711.8,7.07830072]
[1727478233642,603.25745807,2711.9,2711.8,7.07830072]
[1727478236339,611.02745807,2711.9,2711.8,7.07830072]
[1727478238679,618.79745807,2711.9,2711.8,7.07830072]
[1727478240944,626.56745807,2711.9,2711.8,7.07830072]
[1727478243093,634.33745807,2711.9,2711.8,7.07830072]
[1727478248304,634.33745807,2711.9,2711.8,8.72534622]
[1727478248512,634.33745807,2711.9,2711.8,9.09935971]
[1727478248660,634.33745807,2711.9,2711.8,7.45231421]
[1727478248994,634.33745807,2711.9,2711.8,7.07830072]
[1727478249182,634.33745807,2711.9,2711.8,7.45243672]
[1727478250225,634.33745807,2711.9,2711.8,7.07830072]
[1727478250513,634.33745807,2711.9,2711.8,7.45252115]
[1727478254712,634.33745807,2711.9,2711.8,8.9858393]
[1727478255304,634.33745807,2711.9,2711.8,9.36731201]
[1727478255480,634.33745807,2711.9,2711.8,7.45252115]
[1727478256078,634.33745807,2711.9,2711.8,11.01793811]
[1727478256079,633.55715807,2711.9,2711.8,11.01793811]
[1727478256811,633.55715807,2711.9,2711.8,9.09956665]
[1727478257232,633.55715807,2711.9,2711.8,9.69831934]
[1727478257736,633.55715807,2711.9,2711.8,8.72534622]
[1727478257933,633.55715807,2711.9,2711.8,9.10053545]
[1727478258091,633.55715807,2711.9,2711.8,10.30113448]
[1727478260294,633.55715807,2711.9,2711.8,9.92594775]
[1727478261029,633.55715807,2711.9,2711.8,9.32564898]
[1727478261201,633.55715807,2711.9,2711.8,10.3011667]
[1727478261596,633.55715807,2711.9,2711.8,9.7008481]
[1727478263229,633.55715807,2711.9,2711.8,10.67648248]
[1727478264431,633.55715807,2711.9,2711.8,9.7008481]
[1727478264633,633.55715807,2711.9,2711.8,9.7010164]
[1727478268045,633.55715807,2711.9,2711.8,11.62125351]
[1727478268218,633.55715807,2711.9,2711.8,9.7010164]
[1727478268604,633.55715807,2711.9,2711.8,8.72534622]
[1727478268807,633.55715807,2711.9,2711.8,9.7011075]
[1727478269011,633.55715807,2711.9,2711.8,11.62135019]
[1727478269433,633.55715807,2711.9,2711.8,11.6214215]
[1727478269618,633.55715807,2711.9,2711.8,9.7011075]
[1727478270211,635.15485807,2711.9,2711.8,8.054062]
[1727478270411,635.15485807,2711.9,2711.8,9.97432592]
[1727478270733,635.15485807,2711.9,2711.8,9.97434498]
[1727478272053,635.15485807,2711.9,2711.8,9.59905218]
[1727478272354,633.55715807,2711.9,2711.8,8.05408114]
[1727478272512,633.55715807,2711.9,2711.8,9.97424749]
[1727478272836,633.55715807,2711.9,2711.8,11.62130714]
[1727478273813,633.55715807,2711.9,2711.8,11.62150198]
[1727478275350,633.55715807,2711.9,2711.8,11.6216079]
[1727478275694,633.55715807,2711.9,2711.8,10.64582748]
[1727478275858,633.55715807,2711.9,2711.8,10.64578287]
[1727478276012,633.55715807,2711.9,2711.8,11.62169873]
[1727478276218,633.55715807,2711.9,2711.8,9.97465323]
[1727478278369,633.55715807,2711.9,2711.8,8.05420552]
[1727478278866,633.55715807,2711.9,2711.8,9.70125102]
[1727478279500,633.55715807,2711.9,2711.8,8.72534622]
[1727478279641,633.55715807,2711.9,2711.8,12.00567638]
[1727478279847,633.55715807,2711.9,2711.8,11.23599887]
[1727478280470,633.55715807,2711.9,2711.8,15.23599887]
[1727478281482,633.55715807,2711.9,2711.8,17.53877504]
[1727478282781,633.55715807,2711.9,2711.8,17.53817459]
[1727478283087,633.55715807,2711.9,2711.8,16.93808093]
[1727478283380,633.55715807,2711.9,2711.8,17.53816098]
[1727478285389,633.55715807,2711.9,2711.8,17.53778038]
[1727478288592,633.55715807,2711.9,2711.8,13.53778038]
[1727478290055,633.55715807,2711.9,2711.8,13.53754753]
[1727478291592,633.55715807,2711.9,2711.8,17.53754753]
[1727478293406,633.55715807,2711.9,2711.8,17.53713625]
[1727478295178,633.55715807,2711.9,2711.8,17.53657774]
[1727478295727,633.55715807,2711.9,2711.8,16.00167774]
[1727478296759,633.55715807,2711.9,2711.8,15.62682684]
[1727478297000,633.55715807,2711.9,2711.8,16.00169628]
[1727478297302,633.55715807,2711.9,2711.8,13.70000677]
[1727478297503,635.15675807,2711.9,2711.8,13.70000677]
[1727478299067,635.15675807,2711.9,2711.8,16.00169628]
[1727478299693,635.15675807,2711.9,2711.8,13.70000677]
[1727478300408,635.15675807,2711.9,2711.8,12.72534622]
[1727478300568,635.15675807,2711.9,2711.8,13.70033015]
[1727478301501,635.15675807,2711.9,2711.8,9.70033015]
[1727478302502,635.15675807,2711.9,2711.8,8.05328465]
[1727478303038,635.15675807,2711.9,2711.8,9.70033015]
[1727478306103,635.15675807,2711.9,2711.8,12.00248899]
[1727478306104,633.55715807,2711.9,2711.8,12.00248899]
[1727478306302,633.55715807,2711.9,2711.8,8.72534622]
[1727478306524,633.55715807,2711.9,2711.8,9.70004952]
[1727478307293,633.55715807,2711.9,2711.8,13.70004952]
[1727478309124,633.55715807,2711.9,2711.8,9.70004952]
[1727478311841,633.55715807,2711.9,2711.8,13.70004952]
[1727478313302,633.55715807,2711.9,2711.8,12.72534622]
[1727478313508,633.55715807,2711.9,2711.8,13.69973587]
[1727478316455,633.55715807,2711.9,2711.8,8.05269037]
[1727478316653,633.55715807,2711.9,2711.8,12.00076953]
[1727478317154,635.15805807,2711.9,2711.8,9.14973587]
[1727478317646,635.15805807,2711.9,2711.8,11.45076953]
[1727478318555,635.15805807,2711.9,2711.8,12.00076953]
[1727478319052,635.15805807,2711.9,2711.8,9.69973587]
[1727478319253,635.15805807,2711.9,2711.8,12.00076953]
[1727478319546,635.15805807,2711.9,2711.8,13.69973587]
[1727478320356,635.15805807,2711.9,2711.8,12.72534622]
[1727478320559,635.15805807,2711.9,2711.8,16.00165983]
[1727478321113,635.15805807,2711.9,2711.8,13.70062617]
[1727478321400,635.15805807,2711.9,2711.8,16.00165983]
[1727478321888,635.15805807,2711.9,2711.8,13.70062617]
[1727478322195,635.15805807,2711.9,2711.8,16.00165983]
[1727478322617,635.15805807,2711.9,2711.8,13.70062617]
[1727478322762,635.15805807,2711.9,2711.8,16.00165983]
[1727478323076,635.15805807,2711.9,2711.8,16.00422982]
[1727478323687,635.15805807,2711.9,2711.8,13.70062617]
[1727478325075,635.15805807,2711.9,2711.8,16.0049239]
[1727478325475,635.15805807,2711.9,2711.8,12.72534622]
[1727478325781,633.55715807,2711.9,2711.8,12.72534622]
[1727478326173,633.55715807,2711.9,2711.8,15.41288382]
[1727478327125,633.55715807,2711.9,2711.8,12.72534622]
[1727478327275,633.55715807,2711.9,2711.8,13.70118322]
[1727478327813,633.55715807,2711.9,2711.8,16.38872082]
[1727478328175,633.55715807,2711.9,2711.8,16.38996325]
[1727478328496,633.55715807,2711.9,2711.8,15.41412625]
[1727478328693,633.55715807,2711.9,2711.8,12.72534622]
[1727478329104,633.55715807,2711.9,2711.8,13.70154924]
[1727478329575,633.55715807,2711.9,2711.8,16.39032927]
[1727478331876,633.55715807,2711.9,2711.8,12.72534622]
[1727478332711,633.55715807,2711.9,2711.8,15.41412625]
[1727478333298,633.55715807,2711.9,2711.8,17.14183351]
[1727478333478,633.55715807,2711.9,2711.8,14.45305348]
[1727478334223,633.55715807,2711.9,2711.8,17.14183351]
[1727478336123,633.55715807,2711.9,2711.8,14.45305348]
[1727478336286,633.55715807,2711.9,2711.8,17.14183351]
[1727478337297,633.55715807,2711.9,2711.8,14.45305348]
[1727478337727,633.55715807,2711.9,2711.8,13.70187641]
[1727478338226,633.55715807,2711.9,2711.8,14.45305348]
[1727478338442,633.55715807,2711.9,2711.8,13.70187641]
[1727478339128,633.55715807,2711.9,2711.8,16.39223533]
[1727478339649,633.55715807,2711.9,2711.8,13.70185188]
[1727478340332,633.55715807,2711.9,2711.8,16.3922108]
[1727478341633,633.55715807,2711.9,2711.8,12.3922108]
[1727478342330,633.55715807,2711.9,2711.8,12.39196841]
[1727478342725,633.55715807,2711.9,2711.8,8.72534622]
[1727478342937,633.55715807,2711.9,2711.8,9.70170667]
[1727478343115,633.55715807,2711.9,2711.8,12.39165272]
[1727478343327,633.55715807,2711.9,2711.8,9.70170667]
[1727478343693,633.55715807,2711.9,2711.8,8.72534622]
[1727478343892,633.55715807,2711.9,2711.8,12.39191385]
[1727478344632,633.55715807,2711.9,2711.8,16.39191385]
[1727478346319,633.55715807,2711.9,2711.8,15.41552977]
[1727478346522,633.55715807,2711.9,2711.8,16.3916926]
[1727478349450,633.55715807,2711.9,2711.8,12.3916926]
[1727478352147,633.55715807,2711.9,2711.8,9.70150905]
[1727478352352,633.55715807,2711.9,2711.8,13.70150905]
[1727478353357,633.55715807,2711.9,2711.8,12.72534622]
[1727478353651,632.92615128,2711.9,2711.8,13.7017022]
[1727478353812,632.60278128,2711.9,2711.8,13.7017022]
[1727478354862,631.79614097,2711.9,2711.8,13.7017022]
[1727478355171,631.39779097,2711.9,2711.8,15.2155022]
[1727478355883,631.39779097,2711.9,2711.8,15.2153098]
[1727478356440,631.39779097,2711.9,2711.8,15.21523876]
[1727478357724,630.76779097,2711.9,2711.8,15.21523876]
[1727478359175,630.76779097,2711.9,2711.8,15.58463876]
[1727478360568,630.76779097,2711.9,2711.8,14.07082043]
[1727478360730,630.76779097,2711.9,2711.8,16.7600224]
[1727478360928,630.76779097,2711.9,2711.8,14.07082043]
[1727478361333,630.76779097,2711.9,2711.8,12.76000832]
[1727478361563,630.76779097,2711.9,2711.8,10.07082043]
[1727478361979,630.76779097,2711.9,2711.8,12.76008318]
[1727478363171,630.76779097,2711.9,2711.8,12.7601627]
[1727478363668,630.76779097,2711.9,2711.8,10.07082043]
[1727478364244,630.76779097,2711.9,2711.8,12.76007148]
[1727478364452,630.76779097,2711.9,2711.8,14.07082043]
[1727478364653,630.06499097,2711.9,2711.8,14.07082043]
[1727478365148,630.06499097,2711.9,2711.8,16.76004697]
[1727478365377,630.06499097,2711.9,2711.8,14.07082043]
[1727478368020,630.06499097,2711.9,2711.8,16.76054229]
[1727478369317,630.06499097,2711.9,2711.8,14.07082043]
[1727478369486,629.95809097,2711.9,2711.8,12.76098018]
[1727478369893,631.57759097,2711.9,2711.8,12.7614426]
[1727478370092,631.57759097,2711.9,2711.8,10.07128285]
[1727478371223,631.57759097,2711.9,2711.8,12.28828285]
[1727478371421,631.57759097,2711.9,2711.8,10.07128285]
[1727478371610,630.56039097,2711.9,2711.8,10.07128285]
[1727478372481,630.56039097,2711.9,2711.8,14.07128285]
[1727478373500,630.56039097,2711.9,2711.8,13.09474622]
[1727478373685,630.56039097,2711.9,2711.8,14.07132]
[1727478374391,630.56039097,2711.9,2711.8,13.70192]
[1727478377021,630.56039097,2711.9,2711.8,12.72534622]
[1727478377182,630.56039097,2711.9,2711.8,13.70200417]
[1727478380582,630.56039097,2711.9,2711.8,12.72534622]
[1727478380831,630.56039097,2711.9,2711.8,13.70189171]
[1727478381043,630.56039097,2711.9,2711.8,13.70191103]
[1727478384450,630.56039097,2711.9,2711.8,13.70192573]
[1727478385152,631.63521643,2711.9,2711.8,10.42736951]
[1727478385360,631.63521643,2711.9,2711.8,7.90390822]
[1727478385915,631.63521643,2711.9,2711.8,3.90390822]
[1727478386117,631.63521643,2711.9,2711.8,3.52830072]
[1727478386318,1.5287,2711.8,2711.6,4.0634575]
[1727478386616,1.5287,2711.7,2711.6,3.68785]
[1727478387251,1.5287,2711.7,2711.5,3.68796]
[1727478387434,1.5287,2711.7,2711.3,3.68822]
[1727478387435,3.1757455,2711.7,2711.3,3.68822]
[1727478387628,1.5287,2711.5,2711.4,3.68813]
[1727478389423,1.5287,2711.5,2711.4,6.68813]
[1727478392773,1.6470455,2711.5,2711.3,3.68822]
[1727478392962,1.5287,2711.4,2711.3,3.68822]
[1727478393166,1.91619485,2711.4,2711.3,3.68822]
[1727478400048,1.91619485,2711.4,2711.2,3.68839]
[1727478400049,1.5287,2711.3,2711.2,3.68832]
[1727478400250,3.1757455,2711.3,2711.2,3.68832]
[1727478400479,3.53206954,2711.3,2711.2,3.68832]
[1727478402349,1.88502404,2711.3,2711.2,3.68832]
[1727478405784,1.5287,2711.3,2711.2,3.68832]
[1727478423489,0.69920296,2711.6,2711.5,3.68799]
[1727478424227,2.29660296,2711.6,2711.5,3.68799]
[1727478444003,0.69920296,2711.6,2711.5,3.68799]
[1727478444214,6.22284781,2711.8,2711.7,3.68772]
[1727478446612,5.44768408,2711.8,2711.7,3.68772]
[1727478447612,6.22284781,2711.8,2711.7,3.68772]
[1727478448584,5.44768408,2711.8,2711.7,3.68772]
[1727478449875,6.22284781,2711.8,2711.7,3.68772]
[1727478450882,6.22284781,2711.8,2711.6,3.68784]
[1727478451227,3.81628408,2711.7,2711.6,7.37558]
[1727478454006,3.81628408,2711.7,2711.6,3.68774]
[1727478454229,4.59144781,2711.7,2711.6,3.68774]
[1727478454537,3.81628408,2711.7,2711.6,3.68774]
[1727478466418,630.10383718,2711.9,2711.7,3.68772]
[1727478466623,628.94089097,2711.9,2711.7,5.24902]
[1727478466918,628.94089097,2711.9,2711.8,3.68758]
[1727478468062,628.94089097,2711.9,2711.8,8.24888]
[1727478469750,628.94089097,2711.9,2711.8,8.79888]
[1727478470663,628.94089097,2711.9,2711.8,10.33706409]
[1727478471413,628.94089097,2711.9,2711.8,8.79888]
[1727478471739,628.94089097,2711.9,2711.8,10.33706409]
[1727478472113,628.94089097,2711.9,2711.8,8.79888]
[1727478480271,628.94089097,2711.9,2711.8,6.68758]
[1727478480572,631.30528326,2711.9,2711.8,6.68758]
[1727478483391,628.94089097,2711.9,2711.8,6.68758]
[1727478491222,630.47259097,2711.9,2711.8,6.68758]
[1727478496303,630.47259097,2711.9,2711.8,3.68758]
[1727478519887,628.94089097,2711.9,2711.8,3.68758]
[1727478537824,628.94089097,2711.9,2711.8,4.06437406]
[1727478538013,628.94089097,2711.9,2711.8,3.68758]
[1727478550367,630.54039097,2711.9,2711.8,3.68758]
[1727478551198,634.35667505,2711.9,2711.8,3.68758]
[1727478563474,635.51962126,2711.9,2711.8,3.68758]
[1727478563801,634.35667505,2711.9,2711.8,3.68758]
[1727478566776,634.35667505,2711.9,2711.7,3.68772]
[1727478567085,632.75717505,2711.9,2711.7,3.68763]
[1727478567284,5.33558408,2711.8,2711.7,3.68763]
[1727478569504,5.33558408,2711.8,2711.7,3.68772]
[1727478584014,3.81628408,2711.8,2711.7,3.68772]
[1727478584428,3.81628408,2711.8,2711.7,3.63772]
[1727478594105,3.81628408,2711.8,2711.7,6.63772]
[1727478600924,633.92012126,2711.9,2711.8,5.33298]
[1727478600925,628.94089097,2711.9,2711.8,5.33298]
[1727478608564,628.94089097,2711.9,2711.8,3.68758]
[1727478626515,630.53049097,2711.9,2711.8,3.68758]
[1727478631080,628.94089097,2711.9,2711.8,3.68758]
[1727478638205,628.94089097,2711.9,2711.8,4.68758]
[1727478643138,630.53029097,2711.9,2711.8,4.68758]
[1727478662747,630.53029097,2711.9,2711.8,1.0]
[1727478662956,630.53029097,2711.9,2711.8,4.68758]
[1727478665069,637.51767267,2711.9,2711.8,1.0]
[1727478665243,637.51767267,2711.9,2711.0,1.658]
[1727478665244,1.6162,2711.5,2710.8,3.68885]
[1727478665458,1.6162,2711.5,2710.5,8.88818409]
[1727478665459,1.6162,2710.8,2710.6,3.68913]
[1727478665657,0.32632455,2710.7,2710.6,3.68913]
[1727478665956,1.6162,2710.8,2710.7,3.68908]
[1727478666301,1.6162,2710.8,2710.4,3.6894]
[1727478666438,1.6470455,2710.7,2710.5,3.68935]
[1727478667734,1.6162,2710.8,2710.6,3.0]
[1727478668263,1.94252455,2710.8,2710.6,3.0]
[1727478668503,1.94252455,2710.8,2710.6,6.68912]
[1727478671099,1.6162,2710.8,2710.6,6.68912]
[1727478672310,1.6162,2710.8,2710.7,3.68908]
[1727478676414,1.6162,2710.8,2710.6,3.68921]
[1727478676608,3.2632455,2710.8,2710.6,3.68921]
[1727478676907,3.58957005,2710.8,2710.6,3.68921]
[1727478677409,3.58957005,2710.8,2710.6,7.37835]
[1727478678023,3.58957005,2710.8,2710.6,3.6892]